bitfinex/quotes_BTCUSD_20220212
["timestamp","ask_amount","ask_price","bid_price","bid_amount"]
[1644654010558,0.50208402,42316.0,42313.0,0.3]
[1644654010951,0.50208402,42316.0,42314.0,0.19139302]
[1644654011349,0.00208402,42316.0,42314.0,0.19139302]
[1644654011749,0.00208402,42316.0,42312.0,0.00074458]
[1644654012187,0.00208402,42316.0,42311.0,0.00022037]
[1644654012391,0.00208402,42316.0,42312.0,0.00020881]
[1644654012584,0.07344569,42313.0,42312.0,0.00020881]
[1644654012785,0.00208402,42316.0,42312.0,0.00020881]
[1644654012786,0.00208402,42316.0,42313.0,0.39689137]
[1644654012985,0.00208402,42316.0,42314.0,0.0001]
[1644654013385,0.06897396,42316.0,42314.0,0.0001]
[1644654014385,0.00208402,42316.0,42314.0,0.0001]
[1644654017437,0.21715667,42316.0,42314.0,0.0001]
[1644654018237,0.26715667,42316.0,42314.0,0.0001]
[1644654019339,0.29362329,42315.0,42314.0,0.0001]
[1644654020583,0.36715667,42316.0,42314.0,0.0001]
[1644654020782,0.26715667,42316.0,42314.0,0.0001]
[1644654020984,0.36715667,42316.0,42314.0,0.0001]
[1644654021984,0.26715667,42316.0,42314.0,0.0001]
[1644654022183,0.36715667,42316.0,42314.0,0.0001]
[1644654024537,0.26715667,42316.0,42314.0,0.0001]
[1644654024737,0.36715667,42316.0,42314.0,0.0001]
[1644654024938,0.36685667,42316.0,42314.0,0.0001]
[1644654025140,0.36785134,42316.0,42314.0,0.0001]
[1644654025841,0.28919825,42315.0,42314.0,0.0001]
[1644654026538,0.36785134,42316.0,42314.0,0.0001]
[1644654027187,0.26785134,42316.0,42314.0,0.0001]
[1644654029792,0.05277869,42316.0,42314.0,0.0001]
[1644654030194,0.00277869,42316.0,42314.0,0.0001]
[1644654030594,0.17629927,42317.0,42314.0,0.0001]
[1644654035191,0.00272869,42316.0,42314.0,0.0001]
[1644654040044,0.00272869,42316.0,42313.0,0.14245558]
[1644654040242,0.00204652,42316.0,42313.0,0.14245558]
[1644654040848,0.00204652,42316.0,42314.0,0.2650382]
[1644654041047,0.00204652,42316.0,42313.0,0.14199137]
[1644654041343,0.00204652,42316.0,42315.0,0.2076594]
[1644654041552,0.00204652,42316.0,42315.0,0.49865414]
[1644654041749,4.652e-05,42316.0,42315.0,0.34099474]
[1644654042790,0.00046575,42320.0,42317.0,9.303e-05]
[1644654043395,0.21639789,42324.0,42317.0,9.303e-05]
[1644654043590,0.00046576,42321.0,42319.0,0.05]
[1644654044591,0.24597406,42328.0,42319.0,0.05]
[1644654044791,0.00046391,42322.0,42319.0,0.05]
[1644654045193,0.00046391,42322.0,42320.0,0.0001]
[1644654045742,0.26932754,42327.0,42320.0,0.0001]
[1644654045939,0.07645389,42326.0,42320.0,0.0001]
[1644654046136,0.00046386,42323.0,42320.0,0.0001]
[1644654046938,0.12645389,42326.0,42320.0,0.0001]
[1644654047338,0.00046385,42324.0,42320.0,0.0001]
[1644654048139,0.12645389,42326.0,42320.0,0.0001]
[1644654048543,0.00046398,42324.0,42320.0,0.0001]
[1644654049340,0.12645389,42326.0,42320.0,0.26514914]
[1644654049585,0.12645389,42326.0,42321.0,0.0001]
[1644654049785,0.00046404,42324.0,42321.0,0.0001]
[1644654049987,0.00046404,42324.0,42320.0,0.0001]
[1644654050187,0.00046404,42324.0,42321.0,0.00132755]
[1644654050587,0.17645389,42326.0,42321.0,0.00132755]
[1644654050989,0.00046404,42325.0,42321.0,0.00132755]
[1644654051687,0.00046404,42325.0,42321.0,0.00142755]
[1644654051890,0.17645389,42326.0,42321.0,0.00142755]
[1644654052091,0.00046402,42325.0,42321.0,0.00142755]
[1644654052290,0.00046402,42325.0,42321.0,0.00132755]
[1644654052491,0.00046402,42325.0,42321.0,0.00142755]
[1644654052792,0.00046402,42325.0,42321.0,0.00132755]
[1644654052991,0.36932754,42327.0,42321.0,0.00142755]
[1644654052992,0.05,42326.0,42321.0,0.00142755]
[1644654053440,0.00046401,42325.0,42321.0,0.00142755]
[1644654053642,0.05,42327.0,42322.0,0.47993078]
[1644654053849,0.5,42335.0,42323.0,0.30590149]
[1644654054041,0.5,42335.0,42324.0,0.0001]
[1644654054042,0.5,42334.0,42324.0,0.0001]
[1644654054644,0.05,42335.0,42330.0,0.199165]
[1644654054845,0.05,42335.0,42331.0,0.0001]
[1644654055044,0.96458177,42339.0,42331.0,0.0001]
[1644654055244,0.5,42338.0,42331.0,0.0001]
[1644654055444,0.75,42337.0,42324.0,0.32109634]
[1644654055646,0.75,42337.0,42334.0,0.05]
[1644654055647,0.05,42336.0,42334.0,0.05]
[1644654055846,0.0973,42336.0,42328.0,0.05]
[1644654056046,0.059105,42333.0,42324.0,0.00148975]
[1644654056249,0.059114,42329.0,42324.0,0.00148975]
[1644654056450,0.24093793,42322.0,42318.0,0.1129]
[1644654056647,0.29093793,42322.0,42318.0,0.1129]
[1644654056846,0.34093793,42322.0,42317.0,0.00030216]
[1644654057097,0.0473,42321.0,42317.0,0.00030216]
[1644654057390,0.07637197,42320.0,42317.0,0.00030216]
[1644654057593,0.12637197,42320.0,42317.0,0.00030216]
[1644654057791,0.17637197,42320.0,42317.0,9.303e-05]
[1644654060497,0.24303664,42318.0,42317.0,9.303e-05]
[1644654060757,0.39033664,42318.0,42317.0,9.303e-05]
[1644654061244,0.49033664,42318.0,42317.0,9.303e-05]
[1644654061445,0.75,42317.0,42313.0,0.11418967]
[1644654061647,0.0473,42316.0,42313.0,0.11418967]
[1644654061845,0.44303664,42318.0,42313.0,0.11418967]
[1644654061846,0.0473,42315.0,42313.0,0.11418967]
[1644654062046,0.1,42318.0,42313.0,0.11418967]
[1644654062246,0.17637197,42320.0,42313.0,0.11418967]
[1644654062445,0.05,42317.0,42313.0,0.11418967]
[1644654062645,0.17637197,42320.0,42313.0,0.11418967]
[1644654063046,0.17637197,42320.0,42314.0,0.19661585]
[1644654064047,0.1,42320.0,42314.0,0.19661585]
[1644654064250,0.23681742,42322.0,42314.0,0.19661585]
[1644654064251,0.05,42319.0,42314.0,0.19661585]
[1644654064486,0.33681742,42322.0,42313.0,0.11418967]
[1644654065288,0.43734532,42322.0,42315.0,0.00210172]
[1644654065688,0.06317705,42319.0,42315.0,0.00210172]
[1644654069146,0.29598765,42318.0,42315.0,0.00210172]
[1644654069343,0.39598765,42318.0,42315.0,0.00210172]
[1644654069743,0.49598765,42318.0,42315.0,0.00210172]
[1644654069943,0.49598765,42318.0,42314.0,0.0001]
[1644654070144,0.25699506,42315.0,42314.0,0.0001]
[1644654070348,0.60963142,42315.0,42314.0,0.0001]
[1644654070744,0.70963142,42315.0,42314.0,0.0001]
[1644654071144,0.94963142,42315.0,42314.0,0.0001]
[1644654072205,0.64699506,42315.0,42314.0,0.0001]
[1644654074907,0.94095955,42315.0,42314.0,0.0001]
[1644654077341,0.64699506,42315.0,42314.0,0.0001]
[1644654079141,0.69429506,42315.0,42314.0,0.0001]
[1644654082100,0.69429506,42315.0,42314.0,4.22e-06]
[1644654083539,0.99231044,42315.0,42314.0,4.22e-06]
[1644654084140,0.69429506,42315.0,42314.0,4.22e-06]
[1644654084541,0.98660389,42315.0,42314.0,4.22e-06]
[1644654086990,0.98560389,42315.0,42314.0,4.22e-06]
[1644654087491,0.69329506,42315.0,42314.0,4.22e-06]
[1644654087689,1.19329506,42315.0,42314.0,4.22e-06]
[1644654090094,1.18899506,42315.0,42314.0,4.22e-06]
[1644654093452,1.14169506,42315.0,42314.0,4.22e-06]
[1644654095609,0.74,42315.0,42314.0,4.22e-06]
[1644654096010,0.24,42315.0,42314.0,4.22e-06]
[1644654096209,0.00052396,42322.0,42315.0,0.29660186]
[1644654096406,0.5,42324.0,42316.0,4.22e-06]
[1644654096607,0.00052396,42322.0,42316.0,0.24324373]
[1644654096906,0.00052396,42322.0,42317.0,4.22e-06]
[1644654097407,0.37421815,42326.0,42317.0,4.22e-06]
[1644654097807,0.00051786,42322.0,42317.0,4.22e-06]
[1644654098647,0.1,42326.0,42317.0,4.22e-06]
[1644654098847,0.15,42326.0,42317.0,4.22e-06]
[1644654099048,0.00032037,42322.0,42317.0,4.22e-06]
[1644654099649,0.24032037,42322.0,42317.0,4.22e-06]
[1644654099849,0.29,42322.0,42317.0,4.22e-06]
[1644654100049,0.34,42322.0,42317.0,4.22e-06]
[1644654100248,0.44029881,42322.0,42317.0,4.22e-06]
[1644654101148,0.44,42322.0,42317.0,4.22e-06]
[1644654101348,0.44050288,42322.0,42317.0,4.22e-06]
[1644654102393,0.44,42322.0,42317.0,4.22e-06]
[1644654102593,0.44050288,42322.0,42317.0,4.22e-06]
[1644654103195,0.44050288,42322.0,42316.0,4.22e-06]
[1644654103598,0.44,42322.0,42316.0,4.22e-06]
[1644654103795,0.44050288,42322.0,42316.0,4.22e-06]
[1644654103996,0.19374761,42320.0,42316.0,4.22e-06]
[1644654104196,0.24374761,42320.0,42316.0,4.22e-06]
[1644654104397,0.08449696,42319.0,42316.0,4.22e-06]
[1644654106946,0.37382033,42319.0,42316.0,4.22e-06]
[1644654107145,0.2473,42320.0,42316.0,4.22e-06]
[1644654108346,0.1473,42320.0,42316.0,4.22e-06]
[1644654109146,0.08332725,42319.0,42316.0,4.22e-06]
[1644654109347,0.1,42320.0,42316.0,4.22e-06]
[1644654109595,0.4040068,42321.0,42316.0,4.22e-06]
[1644654109994,0.2,42321.0,42316.0,4.22e-06]
[1644654110296,0.1,42321.0,42316.0,4.22e-06]
[1644654110694,0.05,42321.0,42316.0,4.22e-06]
[1644654110898,0.13582452,42320.0,42316.0,4.22e-06]
[1644654115042,0.05,42320.0,42316.0,4.22e-06]
[1644654115240,0.44045203,42322.0,42316.0,4.22e-06]
[1644654115441,0.34045203,42322.0,42316.0,4.22e-06]
[1644654115643,0.29253554,42321.0,42316.0,4.22e-06]
[1644654115842,0.53337603,42321.0,42316.0,4.22e-06]
[1644654116043,0.35166054,42321.0,42316.0,4.22e-06]
[1644654116243,0.2800864,42321.0,42316.0,4.22e-06]
[1644654116443,0.1,42321.0,42316.0,4.22e-06]
[1644654117303,0.4404521,42322.0,42317.0,0.23839221]
[1644654117495,0.4404521,42322.0,42318.0,4.22e-06]
[1644654117894,0.44,42322.0,42318.0,4.22e-06]
[1644654118196,0.4404521,42322.0,42318.0,4.22e-06]
[1644654119199,0.44,42322.0,42318.0,4.22e-06]
[1644654119396,0.4404521,42322.0,42318.0,4.22e-06]
[1644654119997,0.4404521,42322.0,42315.0,0.13499829]
[1644654120502,0.44,42322.0,42315.0,0.13499829]
[1644654120750,0.44045209,42322.0,42315.0,0.3724252]
[1644654121345,0.44045209,42322.0,42315.0,0.13499829]
[1644654121543,0.44,42322.0,42315.0,0.13499829]
[1644654121746,0.44045209,42322.0,42315.0,0.13499829]
[1644654122644,0.44,42322.0,42315.0,0.13499829]
[1644654123043,0.20120151,42319.0,42315.0,0.13499829]
[1644654123245,0.30120151,42319.0,42315.0,0.13499829]
[1644654123446,0.29272455,42318.0,42315.0,0.13499829]
[1644654124347,0.07306753,42317.0,42315.0,0.13499829]
[1644654124590,0.17306753,42317.0,42315.0,0.13499829]
[1644654125191,0.17306753,42317.0,42316.0,0.0001]
[1644654125592,0.17306753,42317.0,42315.0,0.13009829]
[1644654130742,0.17306753,42317.0,42316.0,0.0001]
[1644654131343,0.16806753,42317.0,42316.0,0.0001]
[1644654134201,0.16806753,42317.0,42315.0,0.12914829]
[1644654137645,0.22719846,42317.0,42315.0,0.12914829]
[1644654137844,0.16806753,42317.0,42315.0,0.12914829]
[1644654139493,0.16806753,42317.0,42316.0,0.0001]
[1644654141697,0.106428,42320.0,42316.0,0.0001]
[1644654141698,0.0473,42320.0,42316.0,0.0001]
[1644654141901,0.24,42322.0,42316.0,0.0001]
[1644654142098,0.24,42322.0,42316.0,0.28878715]
[1644654142296,0.24,42322.0,42317.0,0.0001]
[1644654142499,0.24045209,42322.0,42317.0,0.0001]
[1644654142896,0.29045209,42322.0,42317.0,0.0001]
[1644654143096,0.4041673,42322.0,42317.0,0.0001]
[1644654143351,0.5046194,42322.0,42317.0,0.0001]
[1644654144149,0.4404521,42322.0,42317.0,0.0001]
[1644654144350,0.44,42322.0,42317.0,0.0001]
[1644654144750,0.4404521,42322.0,42317.0,0.0001]
[1644654145551,0.44,42322.0,42317.0,0.0001]
[1644654145952,0.44028233,42322.0,42316.0,0.0001]
[1644654146153,0.44028233,42322.0,42316.0,0.26429141]
[1644654146352,0.44028233,42322.0,42317.0,0.0001]
[1644654146753,0.44,42322.0,42317.0,0.0001]
[1644654146997,0.44028233,42322.0,42317.0,0.0001]
[1644654147800,0.44028233,42322.0,42316.0,0.0001]
[1644654147999,0.44,42322.0,42316.0,0.0001]
[1644654148197,0.44028233,42322.0,42316.0,0.0001]
[1644654148698,0.44028233,42322.0,42316.0,0.26539727]
[1644654148898,0.44028233,42322.0,42317.0,0.0001]
[1644654149100,0.44,42322.0,42317.0,0.0001]
[1644654149498,0.34050586,42322.0,42317.0,0.0001]
[1644654150400,0.34,42322.0,42317.0,0.0001]
[1644654150605,0.34050586,42322.0,42317.0,0.0001]
[1644654151049,0.29050586,42322.0,42317.0,0.0001]
[1644654151248,0.24050586,42322.0,42317.0,0.0001]
[1644654151647,0.24,42322.0,42317.0,0.0001]
[1644654151849,0.24030138,42322.0,42317.0,0.0001]
[1644654152848,0.24,42322.0,42317.0,0.0001]
[1644654153048,0.24027991,42322.0,42317.0,0.0001]
[1644654153450,0.29027991,42322.0,42317.0,0.0001]
[1644654154049,0.29,42322.0,42317.0,0.0001]
[1644654154249,0.29048485,42322.0,42317.0,0.0001]
[1644654154508,0.29048485,42322.0,42316.0,0.0001]
[1644654155113,0.29,42322.0,42316.0,0.0001]
[1644654155510,0.29048484,42322.0,42316.0,0.0001]
[1644654156311,0.29,42322.0,42316.0,0.0001]
[1644654156712,0.29048629,42322.0,42316.0,0.07247418]
[1644654156914,0.29048629,42322.0,42321.0,0.05]
[1644654156915,0.24048629,42322.0,42321.0,0.05]
[1644654157114,0.12148701,42337.0,42327.0,0.20466897]
[1644654157313,0.22413324,42339.0,42330.0,0.05]
[1644654157513,0.22413324,42339.0,42331.0,0.0001]
[1644654157915,0.2430514,42337.0,42331.0,0.0001]
[1644654158358,0.07242901,42336.0,42331.0,0.0001]
[1644654160157,0.07292751,42336.0,42331.0,0.0001]
[1644654161157,0.07242901,42336.0,42331.0,0.0001]
[1644654161558,0.07292751,42336.0,42331.0,0.0001]
[1644654162405,0.07242901,42336.0,42331.0,0.0001]
[1644654162607,0.07292751,42336.0,42331.0,0.0001]
[1644654163204,0.07292751,42336.0,42331.0,0.26414891]
[1644654163407,0.07292751,42336.0,42332.0,0.0001]
[1644654163607,0.07242901,42336.0,42332.0,0.0001]
[1644654163807,0.07242901,42336.0,42331.0,0.0001]
[1644654164009,0.07292751,42336.0,42331.0,0.0001]
[1644654164809,0.22140677,42339.0,42332.0,0.21888664]
[1644654165008,0.00049068,42336.0,42333.0,0.0001]
[1644654165207,0.00049068,42336.0,42333.0,0.00143312]
[1644654165607,0.24049068,42336.0,42333.0,0.00143312]
[1644654165849,0.29049068,42336.0,42333.0,0.00143312]
[1644654166048,0.24,42336.0,42333.0,0.00143312]
[1644654167248,0.24,42336.0,42333.0,0.00133312]
[1644654170502,0.34,42336.0,42333.0,0.00133312]
[1644654170900,0.44,42336.0,42333.0,0.00133312]
[1644654173950,0.0473,42335.0,42333.0,0.00133312]
[1644654174356,0.0973,42335.0,42333.0,0.00133312]
[1644654174853,0.0473,42335.0,42333.0,0.00133312]
[1644654179614,0.0973,42335.0,42333.0,0.00133312]
[1644654179810,0.0973,42335.0,42318.0,0.3]
[1644654179811,0.059116,42329.0,42318.0,0.3]
[1644654180007,0.10642058,42328.0,42318.0,0.3]
[1644654180208,0.15642058,42328.0,42318.0,0.3]
[1644654180406,0.20642058,42328.0,42318.0,0.3]
[1644654180608,0.5337201,42327.0,42318.0,0.3]
[1644654180849,0.5337201,42327.0,42317.0,0.05049191]
[1644654180850,0.106424,42326.0,42317.0,0.05049191]
[1644654181049,0.19324633,42326.0,42317.0,0.05049191]
[1644654181248,0.24324633,42326.0,42317.0,0.05049191]
[1644654181647,0.24324633,42326.0,42312.0,0.00022506]
[1644654181847,0.24324633,42326.0,42317.0,0.00049191]
[1644654182048,0.32325581,42325.0,42317.0,0.00049191]
[1644654182252,0.0473,42324.0,42317.0,0.00049191]
[1644654182450,0.29736842,42323.0,42317.0,0.00049191]
[1644654182649,0.34466842,42323.0,42317.0,0.00049191]
[1644654182851,0.34466842,42323.0,42311.0,0.00022506]
[1644654182852,0.44466842,42323.0,42311.0,0.00022506]
[1644654183053,0.8,42322.0,42317.0,0.0004919]
[1644654183352,0.0473,42321.0,42317.0,0.0004919]
[1644654183552,0.33072643,42320.0,42317.0,0.0004919]
[1644654183751,0.43072643,42320.0,42317.0,0.0004919]
[1644654183952,0.29724925,42319.0,42317.0,0.0004919]
[1644654184154,0.29724925,42319.0,42311.0,0.00022506]
[1644654185000,0.29724925,42319.0,42316.0,0.0001]
[1644654185200,0.34724925,42319.0,42316.0,0.0001]
[1644654185400,0.49724925,42319.0,42316.0,0.0001]
[1644654186999,0.0473,42318.0,42316.0,0.0001]
[1644654188652,0.2873,42318.0,42316.0,0.0001]
[1644654189052,0.3873,42318.0,42316.0,0.0001]
[1644654189252,0.23527158,42317.0,42316.0,0.0001]
[1644654189552,0.30464196,42317.0,42316.0,0.0001]
[1644654191255,0.34100451,42318.0,42316.0,0.0001]
[1644654191256,0.24100451,42318.0,42316.0,0.0001]
[1644654191456,0.1135,42332.0,42321.0,0.29544915]
[1644654191657,0.0004843,42324.0,42322.0,0.33168291]
[1644654191856,0.0004843,42324.0,42323.0,0.0001]
[1644654192508,0.26812221,42327.0,42322.0,0.0001]
[1644654192904,0.00046408,42326.0,42322.0,0.0001]
[1644654193706,0.23175192,42334.0,42322.0,0.0001]
[1644654193707,0.33175192,42334.0,42322.0,0.0001]
[1644654193907,0.00046408,42326.0,42322.0,0.30909822]
[1644654194110,0.00046408,42326.0,42323.0,0.0001]
[1644654195012,0.07836606,42329.0,42323.0,0.0001]
[1644654195209,0.07836606,42329.0,42323.0,0.00154279]
[1644654195210,0.00046757,42327.0,42323.0,0.00154279]
[1644654195410,0.00046757,42327.0,42323.0,0.00144279]
[1644654196082,0.05,42331.0,42323.0,0.00144279]
[1644654196282,0.00045258,42327.0,42323.0,0.00144279]
[1644654196881,0.00045258,42327.0,42325.0,0.2487852]
[1644654197082,0.00045258,42327.0,42326.0,0.0001]
[1644654197286,2.02487411,42340.0,42326.0,0.3046974]
[1644654197482,2.02487411,42340.0,42327.0,0.0001]
[1644654197688,2.02487411,42340.0,42326.0,0.0001]
[1644654197689,0.00045258,42328.0,42326.0,0.0001]
[1644654198084,0.00045258,42328.0,42327.0,0.05]
[1644654198283,0.00045258,42328.0,42327.0,0.0501]
[1644654198482,0.48471477,42342.0,42327.0,0.0501]
[1644654198483,0.07867355,42340.0,42327.0,0.0501]
[1644654198685,0.07867355,42340.0,42328.0,0.0001]
[1644654198885,0.00028201,42330.0,42328.0,0.0001]
[1644654199284,0.00028201,42330.0,42327.0,0.0001]
[1644654199503,0.00028201,42330.0,42326.0,0.0001]
[1644654199706,0.21153093,42336.0,42326.0,0.0001]
[1644654199904,0.0002816,42331.0,42326.0,0.0001]
[1644654200907,0.06881368,42332.0,42326.0,0.0001]
[1644654201207,0.0002816,42331.0,42326.0,0.0001]
[1644654202108,0.26153093,42336.0,42326.0,0.0001]
[1644654202308,0.0003006,42331.0,42326.0,0.0001]
[1644654202508,0.0003006,42331.0,42327.0,0.05]
[1644654202714,0.0003006,42331.0,42330.0,0.05]
[1644654202916,0.0003006,42331.0,42330.0,0.42631296]
[1644654203381,0.002,42349.0,42330.0,0.52631296]
[1644654203583,0.26883406,42346.0,42339.0,0.21983279]
[1644654203783,0.26883406,42346.0,42332.0,0.5574]
[1644654204081,0.26883406,42346.0,42332.0,0.87029012]
[1644654204280,0.36883406,42346.0,42332.0,0.87029012]
[1644654204880,0.23821016,42341.0,42332.0,0.87029012]
[1644654205081,0.28821016,42341.0,42332.0,0.5574]
[1644654205381,0.28821016,42341.0,42332.0,0.5573]
[1644654205584,0.28821016,42341.0,42332.0,0.0001]
[1644654205878,0.28821016,42341.0,42330.0,0.0473]
[1644654205879,0.05,42341.0,42330.0,0.0474]
[1644654206081,0.00029983,42339.0,42330.0,0.1222562]
[1644654206280,0.00029983,42339.0,42331.0,0.0001]
[1644654206884,0.31883406,42346.0,42329.0,0.42778846]
[1644654206885,0.22832158,42338.0,42330.0,0.26689031]
[1644654207103,0.00050669,42337.0,42331.0,0.0001]
[1644654207308,0.32382827,42338.0,42331.0,0.0001]
[1644654207505,0.27382827,42338.0,42331.0,0.0001]
[1644654207701,0.07952836,42333.0,42331.0,0.0001]
[1644654207903,0.32382827,42338.0,42331.0,0.0001]
[1644654208106,0.27382827,42338.0,42331.0,0.0001]
[1644654209504,0.41213145,42345.0,42331.0,0.0001]
[1644654209805,0.00027955,42339.0,42331.0,0.0001]
[1644654210007,0.00027955,42339.0,42333.0,0.00144245]
[1644654210609,0.0473,42343.0,42333.0,0.00144245]
[1644654210853,0.24,42338.0,42333.0,0.00144245]
[1644654211252,0.34,42338.0,42333.0,0.00144245]
[1644654211453,0.34,42338.0,42333.0,0.00154245]
[1644654213554,0.29,42338.0,42333.0,0.00154245]
[1644654216207,0.29,42338.0,42333.0,0.00144245]
[1644654218107,0.29,42338.0,42334.0,0.23373229]
[1644654218359,0.29,42338.0,42335.0,0.0001]
[1644654218754,0.29,42338.0,42333.0,0.00144245]
[1644654221256,0.3708648,42338.0,42333.0,0.00144245]
[1644654222103,0.29,42338.0,42333.0,0.00144245]
[1644654225305,0.75,42337.0,42330.0,0.10077196]
[1644654225853,0.06784936,42333.0,42330.0,0.10077196]
[1644654226850,0.06784936,42333.0,42327.0,0.303051]
[1644654227353,0.06784936,42333.0,42324.0,0.39171106]
[1644654227555,0.06784936,42333.0,42327.0,0.00053131]
[1644654227954,0.25991203,42328.0,42327.0,0.00053131]
[1644654228655,0.25991203,42328.0,42319.0,0.27995652]
[1644654228851,0.0865998,42326.0,42319.0,0.27995652]
[1644654230499,0.0865998,42326.0,42322.0,0.0001]
[1644654231306,0.29197705,42326.0,42322.0,0.00063117]
[1644654232302,0.29197705,42326.0,42322.0,0.0001]
[1644654232602,0.21102701,42332.0,42326.0,0.24440216]
[1644654232603,0.25881448,42329.0,42326.0,0.24440216]
[1644654232801,0.0894602,42328.0,42327.0,0.0001]
[1644654233258,0.00131838,42332.0,42327.0,0.0001]
[1644654233452,0.25,42331.0,42326.0,0.00450216]
[1644654233857,0.3,42331.0,42326.0,0.00450216]
[1644654234053,0.3,42331.0,42326.0,0.05450216]
[1644654234353,0.05,42331.0,42327.0,0.2717365]
[1644654234554,0.00131838,42332.0,42327.0,0.2717365]
[1644654234753,0.00131838,42332.0,42327.0,0.27222593]
[1644654235352,0.30375049,42334.0,42327.0,0.27222593]
[1644654235755,0.30375049,42334.0,42327.0,0.2717365]
[1644654236052,0.30375049,42334.0,42327.0,0.27222594]
[1644654236856,0.1,42334.0,42327.0,0.27222594]
[1644654237100,0.2,42336.0,42327.0,0.2717365]
[1644654237300,0.05,42333.0,42327.0,0.27222594]
[1644654237705,0.05,42335.0,42327.0,0.27222594]
[1644654238201,0.66781702,42337.0,42327.0,0.2717365]
[1644654238401,0.66781702,42337.0,42327.0,0.27222594]
[1644654238402,0.56781702,42337.0,42327.0,0.27222594]
[1644654238604,0.51781702,42337.0,42327.0,0.27222594]
[1644654238802,0.1706,42337.0,42333.0,0.21978567]
[1644654239004,0.21710699,42338.0,42334.0,0.0001]
[1644654239702,0.21710699,42338.0,42328.0,0.0001]
[1644654239902,0.00131984,42333.0,42328.0,0.0001]
[1644654240302,0.00131984,42333.0,42328.0,0.25164887]
[1644654240603,0.00131984,42333.0,42329.0,0.0001]
[1644654244619,0.00131984,42333.0,42327.0,0.000559]
[1644654244620,0.0473,42332.0,42327.0,0.000559]
[1644654245016,0.04843004,42332.0,42327.0,0.000559]
[1644654245217,0.09843004,42332.0,42327.0,0.000559]
[1644654245416,0.09843004,42332.0,42327.0,0.0001]
[1644654245617,0.09843004,42332.0,42327.0,0.00055899]
[1644654246317,0.20690971,42328.0,42327.0,0.00055899]
[1644654246618,0.20690971,42328.0,42327.0,0.0001]
[1644654246820,0.30690971,42328.0,42327.0,0.0001]
[1644654247016,0.30690971,42328.0,42326.0,0.04460216]
[1644654247017,0.4,42327.0,42326.0,0.04460216]
[1644654248017,0.38679866,42328.0,42326.0,0.04460216]
[1644654248018,0.30690971,42328.0,42326.0,0.04460216]
[1644654248263,0.25690971,42328.0,42326.0,0.04460216]
[1644654248458,0.30690971,42328.0,42326.0,0.04460216]
[1644654249960,0.30896088,42328.0,42326.0,0.04460216]
[1644654262101,0.10205117,42328.0,42326.0,0.04460216]
[1644654262603,0.05205117,42328.0,42326.0,0.04460216]
[1644654262805,0.00205117,42328.0,42326.0,0.04460216]
[1644654263257,0.24904914,42327.0,42326.0,0.04460216]
[1644654264655,0.10205117,42328.0,42326.0,0.04460216]
[1644654265257,0.05205117,42328.0,42326.0,0.04460216]
[1644654265457,0.00205117,42328.0,42326.0,0.04460216]
[1644654266056,0.00205117,42328.0,42326.0,0.04470216]
[1644654266257,0.00205117,42328.0,42326.0,0.30678538]
[1644654266462,0.24,42333.0,42328.0,0.65410234]
[1644654266658,0.24,42333.0,42329.0,0.0001]
[1644654266857,0.24,42333.0,42328.0,0.00420234]
[1644654267102,0.24,42333.0,42330.0,0.07854753]
[1644654267304,0.24,42333.0,42332.0,0.2570311]
[1644654267503,0.24,42333.0,42332.0,0.2571311]
[1644654270511,0.24,42333.0,42332.0,0.5282663]
[1644654270762,0.24,42333.0,42332.0,0.2571311]
[1644654276111,0.24,42333.0,42332.0,0.0001]
[1644654276315,0.24,42333.0,42330.0,0.00151192]
[1644654279655,0.29,42333.0,42330.0,0.00151192]
[1644654280055,0.29,42333.0,42329.0,0.0001]
[1644654280056,0.06409321,42332.0,42329.0,0.0001]
[1644654280458,0.06409321,42332.0,42328.0,0.00564614]
[1644654282102,0.0473,42331.0,42328.0,0.00564614]
[1644654283701,0.0473,42331.0,42328.0,0.00572487]
[1644654286655,0.08996175,42330.0,42328.0,0.00572487]
[1644654286858,0.18996175,42330.0,42328.0,0.00572487]
[1644654287357,0.1,42330.0,42328.0,0.00572487]
[1644654287758,0.05,42330.0,42328.0,0.00572487]
[1644654287956,0.0973,42331.0,42328.0,0.00572487]
[1644654287957,0.1473,42331.0,42328.0,0.00572487]
[1644654291413,0.1473,42331.0,42328.0,0.00564146]
[1644654300008,0.1473,42331.0,42328.0,0.00620829]
[1644654310269,0.05,42329.0,42328.0,0.00418107]
[1644654310469,0.0973,42329.0,42328.0,0.00418107]
[1644654310669,0.0973,42329.0,42326.0,0.05]
[1644654310670,0.75,42328.0,42326.0,0.05]
[1644654310867,0.0473,42327.0,42326.0,0.05]
[1644654312411,0.059122,42326.0,42321.0,0.00206923]
[1644654312610,0.059122,42326.0,42323.0,0.05]
[1644654312611,0.0473,42325.0,42323.0,0.05]
[1644654312811,0.29938318,42324.0,42323.0,0.05]
[1644654313012,0.39668318,42324.0,42323.0,0.05]
[1644654313410,0.49668318,42324.0,42323.0,0.05]
[1644654314311,0.55580618,42324.0,42322.0,0.00022506]
[1644654314513,0.31399341,42323.0,42321.0,0.00206923]
[1644654314716,0.0473,42322.0,42321.0,0.00184417]
[1644654315011,0.34649847,42322.0,42321.0,0.00184417]
[1644654315212,0.39649847,42322.0,42321.0,0.00184417]
[1644654315412,0.49649847,42322.0,42321.0,0.00184417]
[1644654315859,0.49649847,42322.0,42321.0,0.00194417]
[1644654317865,0.75,42321.0,42320.0,2.40239325]
[1644654318072,1.17236341,42321.0,42320.0,2.40216819]
[1644654318362,1.32236341,42321.0,42320.0,0.0013287]
[1644654318563,1.32236341,42321.0,42311.0,0.00022506]
[1644654318564,0.81554867,42320.0,42311.0,0.00022506]
[1644654318862,0.81554867,42320.0,42304.0,0.1185]
[1644654318863,0.22820413,42311.0,42304.0,0.1185]
[1644654319060,0.63839438,42311.0,42308.0,0.00023074]
[1644654319261,0.78839438,42311.0,42305.0,0.00023074]
[1644654319510,0.78839438,42311.0,42302.0,0.00023074]
[1644654319713,0.78839438,42311.0,42300.0,0.9282]
[1644654319714,0.68839438,42311.0,42301.0,0.00023074]
[1644654319914,0.78839438,42311.0,42310.0,0.15573445]
[1644654320116,0.78839438,42311.0,42310.0,0.14864133]
[1644654322419,0.82309008,42311.0,42310.0,0.14864133]
[1644654322813,0.82309008,42311.0,42310.0,0.05851968]
[1644654323013,0.82309008,42311.0,42310.0,0.05861968]
[1644654323273,1.02839438,42311.0,42310.0,0.05861968]
[1644654323465,0.059147,42309.0,42297.0,0.00023074]
[1644654323666,0.06479054,42299.0,42296.0,0.00023074]
[1644654323865,0.06479054,42299.0,42292.0,0.0753213]